[Event "WTCC-50 2018"]
[Site "Radebeul"]
[Date "2018.07.09"]
[Round "3"]
[White "Pieper, Thomas"]
[Black "Meister, Jakob"]
[Result "0-1"]
[ECO "B35"]
[WhiteElo "2208"]
[BlackElo "2432"]
[Annotator "ChessBase"]
[PlyCount "112"]
[EventDate "2018.07.07"]
[EventType "team-tourn"]
[EventCountry "GER"]
[SourceTitle "playchess.com"]
[Source "ChessBase"]
[SourceQuality "1"]
[TimeControl "40/5400+30:1800+30"]

1. e4 {[%emt 0:00:00]} c5 {[%emt 0:00:00]} 2. Nf3 {[%emt 0:00:00]} Nc6 {[%emt 0:00:00]} 3. d4 {[%emt 0:00:04]} cxd4 {[%emt 0:00:00]} 4. Nxd4 {[%emt 0:00:06]} g6 {[%emt 0:00:00]} 5. Nc3 {[%emt 0:00:39]} Bg7 {[%emt 0:00:00]} 6. Be3 {[%emt 0:00:08]} Nf6 {[%emt 0:00:00]} 7. Bc4 {[%emt 0:00:28]} O-O {[%emt 0:00:08]} 8. Bb3 {[%emt 0:00:07]} a5 {[%emt 0:00:11]} 9. O-O {[%emt 0:00:29]} d6 {[%emt 0:03:44]} 10. f3 {[%emt 0:04:55]} Nxd4 {[%emt 0:10:01]} 11. Bxd4 {[%emt 0:00:07]} Bd7 {[%emt 0:01:04]} 12. a4 {[%emt 0:00:36]} Bc6 {[%emt 0:00:00]} 13. Nb5 {[%emt 0:22:07]} Nd7 {[%emt 0:04:56]} 14. c3 {[%emt 0:01:41]} Bxb5 {[%emt 0:04:21]} 15. axb5 {[%emt 0:00:20]} Bxd4+ {[%emt 0:00:05]} 16. cxd4 {[%emt 0:02:39]} Qb6 {[%emt 0:05:05]} 17. Kh1 {[%emt 0:06:08]} Rfc8 {[%emt 0:04:47]} 18. f4 {[%emt 0:02:43]} a4 {[%emt 0:00:46]} 19. Bxa4 {[%emt 0:08:55]} Rc4 {[%emt 0:06:23]} 20. Bb3 {[%emt 0:11:29]} Rxa1 {[%emt 0:00:10]} 21. Qxa1 {[%emt 0:00:07]} Rb4 {[%emt 0:02:14]} 22. Qa2 {[%emt 0:22:39]} Qxb5 {[%emt 0:04:39]} 23. Bxf7+ {[%emt 0:01:53]} Kg7 {[%emt 0:01:26]} 24. Rg1 {[%emt 0:06:44]} Nf6 {[%emt 0:11:03]} 25. e5 {[%emt 0:02:00]} dxe5 {[%emt 0:01:54]} 26. fxe5 {[%emt 0:01:57]} Ne4 {[%emt 0:01:20]} 27. h3 {[%emt 0:01:26]} Rxd4 {[%emt 0:05:00]} 28. Qe6 {[%emt 0:01:47]} Qc5 {[%emt 0:05:06]} 29. Be8 {[%emt 0:01:37]} Ng5 {[%emt 0:01:13]} 30. Qb3 {[%emt 0:00:01]} Qxe5 {[%emt 0:01:11]} 31. Qxb7 {[%emt 0:01:03]} Ne4 {[%emt 0:00:35]} 32. Ra1 {[%emt 0:00:23]} Rd2 {[%emt 0:01:27]} 33. Qb3 {[%emt 0:00:39]} Nd6 {[%emt 0:02:12]} 34. Bc6 {[%emt 0:00:26]} Rxb2 {[%emt 0:01:22]} 35. Qa3 {[%emt 0:00:29]} Re2 {[%emt 0:04:10]} 36. Qa5 {[%emt 0:00:33]} Qxa5 {[%emt 0:01:19]} 37. Rxa5 {[%emt 0:00:02]} h5 {[%emt 0:01:22]} 38. Bf3 {[%emt 0:00:26]} Re1+ {[%emt 0:00:41]} 39. Kh2 {[%emt 0:00:02]} e5 {[%emt 0:00:37]} 40. Kg3 {[%emt 0:01:08]} Kf6 {[%emt 0:07:23]} 41. Ra6 {[%emt 0:04:50]} Ke6 {[%emt 0:00:40]} 42. h4 {[%emt 0:02:04]} Rb1 {[%emt 0:03:26]} 43. Kf2 {[%emt 0:10:25]} Rb4 {[%emt 0:01:15]} 44. Kg3 {[%emt 0:04:31]} Rd4 {[%emt 0:02:39]} 45. Be2 {[%emt 0:02:06]} Ke7 {[%emt 0:02:24]} 46. Kh3 {[%emt 0:03:31]} Rd2 {[%emt 0:03:07]} 47. Bf3 {[%emt 0:02:20]} e4 {[%emt 0:05:36]} 48. Rxd6 {[%emt 0:00:13]} Rxd6 {[%emt 0:00:03]} 49. Bxe4 {[%emt 0:00:07]} Kf6 {[%emt 0:00:05]} 50. Bb1 {[%emt 0:02:22]} Ke5 {[%emt 0:00:52]} 51. g3 {[%emt 0:01:21]} Kd4 {[%emt 0:00:26]} 52. g4 {[%emt 0:00:28]} Rb6 {[%emt 0:02:42]} 53. Bc2 {[%emt 0:01:53]} Rc6 {[%emt 0:07:20]} 54. Bxg6 {[%emt 0:00:47]} Rxg6 {[%emt 0:00:33]} 55. gxh5 {[%emt 0:00:07]} Rg8 {[%emt 0:00:11]} 56. h6 {[%emt 0:00:14]} Ke5 {[%emt 0:00:15]} 0-1

[Event "WTCC-50 2018"]
[Site "Radebeul"]
[Date "2018.07.09"]
[Round "3"]
[White "Rohrmueller, Ulrich"]
[Black "Arkell, Keith C"]
[Result "0-1"]
[ECO "A09"]
[WhiteElo "2205"]
[BlackElo "2406"]
[Annotator "ChessBase"]
[PlyCount "170"]
[EventDate "2018.07.07"]
[EventType "team-tourn"]
[EventCountry "GER"]
[SourceTitle "playchess.com"]
[Source "ChessBase"]
[SourceQuality "1"]
[TimeControl "40/5400+30:1800+30"]

1. Nf3 {[%emt 0:00:00]} d5 {[%emt 0:00:08]} 2. c4 {[%emt 0:00:03]} d4 {[%emt 0:00:07]} 3. e3 {[%emt 0:00:57]} Nc6 {[%emt 0:00:18]} 4. exd4 {[%emt 0:01:13]} Nxd4 {[%emt 0:00:05]} 5. Nxd4 {[%emt 0:00:14]} Qxd4 {[%emt 0:00:05]} 6. d3 {[%emt 0:00:21]} e5 {[%emt 0:00:45]} 7. Nc3 {[%emt 0:00:50]} Nf6 {[%emt 0:06:34]} 8. Be3 {[%emt 0:04:08]} Qd7 {[%emt 0:00:06]} 9. h3 {[%emt 0:03:10]} Bb4 {[%emt 0:01:02]} 10. Qb3 {[%emt 0:04:11]} Qe7 {[%emt 0:00:20]} 11. a3 {[%emt 0:05:08]} Bxc3+ {[%emt 0:00:21]} 12. Qxc3 {[%emt 0:00:08]} O-O {[%emt 0:06:02]} 13. Be2 {[%emt 0:04:05]} Rd8 {[%emt 0:02:34]} 14. O-O {[%emt 0:01:08]} Bf5 {[%emt 0:00:31]} 15. Rfd1 {[%emt 0:00:42]} a5 {[%emt 0:06:08]} 16. b4 {[%emt 0:05:34]} b6 {[%emt 0:02:44]} 17. d4 {[%emt 0:09:35]} exd4 {[%emt 0:06:06]} 18. Rxd4 {[%emt 0:00:37]} Rxd4 {[%emt 0:02:10]} 19. Qxd4 {[%emt 0:00:10]} axb4 {[%emt 0:00:54]} 20. axb4 {[%emt 0:00:28]} Rxa1+ {[%emt 0:00:30]} 21. Qxa1 {[%emt 0:00:08]} Qxb4 {[%emt 0:09:39]} 22. Qe5 {[%emt 0:01:06]} Qe1+ {[%emt 0:01:31]} 23. Kh2 {[%emt 0:00:19]} Qxe2 {[%emt 0:14:05]} 24. Qxf5 {[%emt 0:00:18]} Kf8 {[%emt 0:03:23]} 25. Qc8+ {[%emt 0:09:30]} Ne8 {[%emt 0:00:10]} 26. c5 {[%emt 0:00:19]} bxc5 {[%emt 0:06:17]} 27. Bxc5+ {[%emt 0:02:38]} Kg8 {[%emt 0:00:04]} 28. Be3 {[%emt 0:08:31]} Qb5 {[%emt 0:00:53]} 29. g4 {[%emt 0:07:35]} h6 {[%emt 0:04:23]} 30. Qa8 {[%emt 0:05:54]} Qd7 {[%emt 0:00:47]} 31. Kg2 {[%emt 0:05:18]} c6 {[%emt 0:00:15]} 32. Kg3 {[%emt 0:05:48]} Kh7 {[%emt 0:00:09]} 33. Qa7 {[%emt 0:02:37]} Qe6 {[%emt 0:01:38]} 34. Qd4 {[%emt 0:01:01]} Nd6 {[%emt 0:05:41]} 35. Bf4 {[%emt 0:01:14]} Ne4+ {[%emt 0:01:08]} 36. Kf3 {[%emt 0:00:35]} Nf6 {[%emt 0:07:03]} 37. Kg3 {[%emt 0:05:12]} Nd5 {[%emt 0:02:15]} 38. Qd3+ {[%emt 0:03:39]} Kg8 {[%emt 0:00:14]} 39. Bd2 {[%emt 0:00:25]} h5 {[%emt 0:02:22]} 40. Qc4 {[%emt 0:03:52]} hxg4 {[%emt 0:01:20]} 41. hxg4 {[%emt 0:30:31]} Qd6+ {[%emt 0:32:30]} 42. Kf3 {[%emt 0:00:00]} Qa3+ {[%emt 0:00:00]} 43. Ke2 {[%emt 0:00:00]} Qe7+ {[%emt 0:00:00]} 44. Kf1 {[%emt 0:00:00]} Qe6 {[%emt 0:00:00]} 45. Qd4 {[%emt 0:00:00]} Nf6 {[%emt 0:00:00]} 46. f3 {[%emt 0:00:00]} Nd7 {[%emt 0:00:00]} 47. Kf2 {[%emt 0:00:00]} f6 {[%emt 0:00:00]} 48. g5 {[%emt 0:00:00]} Kf7 {[%emt 0:00:00]} 49. gxf6 {[%emt 0:00:00]} gxf6 {[%emt 0:00:00]} 50. Qe4 {[%emt 0:00:00]} Nf8 {[%emt 0:00:00]} 51. Ke3 {[%emt 0:00:00]} f5 {[%emt 0:00:00]} 52. Qxe6+ {[%emt 0:00:00]} Nxe6 {[%emt 0:00:00]} 53. Kd3 {[%emt 0:00:00]} Kg6 {[%emt 0:00:00]} 54. Bb4 {[%emt 0:00:11]} Kg5 {[%emt 0:00:00]} 55. Bd6 {[%emt 0:00:32]} Kh4 {[%emt 0:00:00]} 56. Ke3 {[%emt 0:00:30]} Kh3 {[%emt 0:00:00]} 57. Be5 {[%emt 0:01:05]} Kg2 {[%emt 0:00:00]} 58. Bd6 {[%emt 0:00:41]} Kf1 {[%emt 0:07:44]} 59. Bb4 {[%emt 0:01:35]} Kg1 {[%emt 0:00:12]} 60. Be7 {[%emt 0:00:26]} Kh2 {[%emt 0:00:11]} 61. Bd6+ {[%emt 0:00:57]} Kg2 {[%emt 0:00:15]} 62. Be5 {[%emt 0:00:08]} Kh3 {[%emt 0:00:05]} 63. Bd6 {[%emt 0:00:15]} Kh4 {[%emt 0:00:04]} 64. Be7+ {[%emt 0:01:58]} Kh5 {[%emt 0:00:02]} 65. Kd3 {[%emt 0:00:22]} Kg6 {[%emt 0:00:05]} 66. Bd6 {[%emt 0:00:59]} Kf7 {[%emt 0:00:01]} 67. Be5 {[%emt 0:00:16]} Ng5 {[%emt 0:00:48]} 68. Ke3 {[%emt 0:00:26]} Ke6 {[%emt 0:00:23]} 69. Bc3 {[%emt 0:00:10]} Nf7 {[%emt 0:02:56]} 70. Kf4 {[%emt 0:00:26]} Nd6 {[%emt 0:00:42]} 71. Bb4 {[%emt 0:01:27]} Nc4 {[%emt 0:00:14]} 72. Bf8 {[%emt 0:00:12]} Nb6 {[%emt 0:00:58]} 73. Ke3 {[%emt 0:00:31]} Nd7 {[%emt 0:00:42]} 74. Bb4 {[%emt 0:00:28]} Ne5 {[%emt 0:02:17]} 75. Bc3 {[%emt 0:00:20]} c5 {[%emt 0:00:34]} 76. Ba1 {[%emt 0:01:14]} Ng6 {[%emt 0:00:13]} 77. Bc3 {[%emt 0:01:16]} Kd5 {[%emt 0:00:08]} 78. Kd3 {[%emt 0:00:19]} Nh4 {[%emt 0:01:24]} 79. Ke3 {[%emt 0:00:02]} Kc4 {[%emt 0:00:11]} 80. Bf6 {[%emt 0:00:40]} Ng6 {[%emt 0:00:04]} 81. Kd2 {[%emt 0:00:42]} Kb3 {[%emt 0:01:03]} 82. Bg7 {[%emt 0:02:10]} c4 {[%emt 0:01:13]} 83. Bf6 {[%emt 0:00:12]} Nf4 {[%emt 0:00:11]} 84. Be5 {[%emt 0:00:44]} Nd5 {[%emt 0:00:34]} 85. Bd4 {[%emt 0:00:51]} f4 {[%emt 0:05:04]} 0-1

[Event "WTCC-50 2018"]
[Site "Radebeul"]
[Date "2018.07.09"]
[Round "3"]
[White "Fatalibekova, Elena"]
[Black "Thee, Bernd"]
[Result "1-0"]
[ECO "B31"]
[WhiteElo "2195"]
[BlackElo "1894"]
[Annotator "NA"]
[PlyCount "33"]
[EventDate "2018.07.07"]
[EventType "team-tourn"]
[EventCountry "GER"]
[SourceTitle "playchess.com"]
[Source "ChessBase"]
[SourceQuality "1"]
[TimeControl "40/5400+30:1800+30"]

1. e4 {[%emt 0:00:00]} c5 {[%emt 0:00:00]} 2. Nf3 {[%emt 0:00:00]} Nc6 {[%emt 0:00:00]} 3. Bb5 {[%emt 0:00:00]} g6 {[%emt 0:01:05]} 4. O-O {[%emt 0:00:11]} Bg7 {[%emt 0:00:08]} 5. c3 {[%emt 0:00:17]} d6 {[%emt 0:04:04]} 6. d4 {[%emt 0:01:03]} cxd4 {[%emt 0:00:18]} 7. cxd4 {[%emt 0:00:34]} Bd7 {[%emt 0:00:49]} 8. Nc3 {[%emt 0:01:03]} Nh6 {[%emt 0:01:25]} 9. d5 {[%emt 0:03:59]} Nb8 {[%emt 0:01:00]} 10. Bxd7+ {[%emt 0:04:57]} Nxd7 {[%emt 0:01:05]} 11. h3 {[%emt 0:00:02]} O-O {[%emt 0:05:37]} 12. Be3 {[%emt 0:01:34]} Qa5 {[%emt 0:04:59]} 13. Qd2 {[%emt 0:01:25]} Nb6 {[%emt 0:09:38]} 14. Bxh6 {[%emt 0:00:32]} Nc4 {[%emt 0:00:06]} 15. Qe2 {[%emt 0:01:26]} Bxh6 {[%emt 0:00:49]} 16. Qxc4 {[%emt 0:00:02]} Rac8 {[%emt 0:00:23]} 17. Qb5 {[%emt 0:01:19]} 1-0

[Event "WTCC-50 2018"]
[Site "Radebeul"]
[Date "2018.07.09"]
[Round "3"]
[White "Koehler, Gerhard"]
[Black "Boehm, Martin"]
[Result "1/2-1/2"]
[ECO "A20"]
[WhiteElo "2181"]
[BlackElo "2172"]
[Annotator "NA"]
[PlyCount "54"]
[EventDate "2018.07.07"]
[EventType "team-tourn"]
[EventCountry "GER"]
[SourceTitle "playchess.com"]
[Source "ChessBase"]
[SourceQuality "1"]
[TimeControl "40/5400+30:1800+30"]

1. c4 {[%emt 0:00:00]} e5 {[%emt 0:00:00]} 2. g3 {[%emt 0:00:00]} Nc6 {[%emt 0:03:08]} 3. Bg2 {[%emt 0:00:18]} Bc5 {[%emt 0:00:18]} 4. Nc3 {[%emt 0:00:45]} a6 {[%emt 0:00:36]} 5. e3 {[%emt 0:00:30]} h5 {[%emt 0:02:24]} 6. Nf3 {[%emt 0:05:05]} d6 {[%emt 0:03:06]} 7. d4 {[%emt 0:03:15]} Bb4 {[%emt 0:06:23]} 8. Qc2 {[%emt 0:10:23]} h4 {[%emt 0:13:23]} 9. d5 {[%emt 0:07:23]} h3 {[%emt 0:13:54]} 10. Bf1 {[%emt 0:00:30]} Qf6 {[%emt 0:03:53]} 11. Nd2 {[%emt 0:18:30]} Bxc3 {[%emt 0:00:28]} 12. Qxc3 {[%emt 0:00:39]} Nce7 {[%emt 0:00:24]} 13. Be2 {[%emt 0:02:26]} Nh6 {[%emt 0:02:07]} 14. O-O {[%emt 0:01:30]} O-O {[%emt 0:04:05]} 15. b4 {[%emt 0:09:32]} b5 {[%emt 0:03:51]} 16. e4 {[%emt 0:02:32]} Qg6 {[%emt 0:06:37]} 17. cxb5 {[%emt 0:05:42]} f5 {[%emt 0:05:11]} 18. Qxc7 {[%emt 0:03:59]} fxe4 {[%emt 0:00:32]} 19. Qxe7 {[%emt 0:06:09]} Nf5 {[%emt 0:00:24]} 20. Qc7 {[%emt 0:00:19]} Nd4 {[%emt 0:01:28]} 21. Bd1 {[%emt 0:00:42]} e3 {[%emt 0:08:22]} 22. fxe3 {[%emt 0:07:41]} Rxf1+ {[%emt 0:01:14]} 23. Nxf1 {[%emt 0:05:44]} Qe4 {[%emt 0:04:13]} 24. Qd8+ {[%emt 0:00:19]} Kf7 {[%emt 0:00:38]} 25. Bh5+ {[%emt 0:00:23]} g6 {[%emt 0:00:32]} 26. Qc7+ {[%emt 0:02:28]} Kg8 {[%emt 0:03:05]} 27. Qd8+ {[%emt 0:00:28]} Kf7 {[%emt 0:00:05]} 1/2-1/2

[Event "WTCC-50 2018"]
[Site "Radebeul"]
[Date "2018.07.09"]
[Round "3"]
[White "Gempe, Thomas"]
[Black "Haase, Wolfgang"]
[Result "1-0"]
[ECO "A40"]
[WhiteElo "2178"]
[BlackElo "2028"]
[Annotator "NA"]
[PlyCount "79"]
[EventDate "2018.07.07"]
[EventType "team-tourn"]
[EventCountry "GER"]
[SourceTitle "playchess.com"]
[Source "ChessBase"]
[SourceQuality "1"]
[TimeControl "40/5400+30:1800+30"]

1. d4 {[%emt 0:00:00]} g6 {[%emt 0:00:00]} 2. e4 {[%emt 0:00:29]} c5 {[%emt 0:00:25]} 3. d5 {[%emt 0:00:53]} d6 {[%emt 0:00:25]} 4. Nc3 {[%emt 0:00:49]} Bg7 {[%emt 0:00:48]} 5. Bb5+ {[%emt 0:00:37]} Nd7 {[%emt 0:02:47]} 6. a4 {[%emt 0:00:51]} Ngf6 {[%emt 0:00:50]} 7. Nf3 {[%emt 0:00:24]} O-O {[%emt 0:00:41]} 8. O-O {[%emt 0:00:55]} Ne8 {[%emt 0:11:10]} 9. Bg5 {[%emt 0:09:52]} Ne5 {[%emt 0:03:17]} 10. Nd2 {[%emt 0:00:31]} f6 {[%emt 0:02:37]} 11. Bh4 {[%emt 0:01:28]} Nc7 {[%emt 0:01:00]} 12. Be2 {[%emt 0:00:40]} Bd7 {[%emt 0:03:57]} 13. f4 {[%emt 0:01:46]} Nf7 {[%emt 0:00:16]} 14. Nc4 {[%emt 0:10:30]} b6 {[%emt 0:09:00]} 15. Bf3 {[%emt 0:33:18]} Rb8 {[%emt 0:05:55]} 16. Re1 {[%emt 0:00:41]} e5 {[%emt 0:15:31]} 17. fxe5 {[%emt 0:09:47]} dxe5 {[%emt 0:00:33]} 18. Bg4 {[%emt 0:09:26]} g5 {[%emt 0:05:58]} 19. Bxd7 {[%emt 0:04:41]} Qxd7 {[%emt 0:00:09]} 20. Bg3 {[%emt 0:00:24]} Nd6 {[%emt 0:00:40]} 21. Nxd6 {[%emt 0:00:51]} Qxd6 {[%emt 0:00:06]} 22. Nb5 {[%emt 0:00:13]} Nxb5 {[%emt 0:07:44]} 23. axb5 {[%emt 0:00:38]} Rf7 {[%emt 0:00:11]} 24. c4 {[%emt 0:02:08]} Bf8 {[%emt 0:04:03]} 25. Rf1 {[%emt 0:01:39]} Qd7 {[%emt 0:11:09]} 26. Rf5 {[%emt 0:00:51]} Bg7 {[%emt 0:03:59]} 27. Ra3 {[%emt 0:01:18]} Rbf8 {[%emt 0:00:50]} 28. Be1 {[%emt 0:02:00]} Rd8 {[%emt 0:01:35]} 29. Qh5 {[%emt 0:00:39]} Bf8 {[%emt 0:01:14]} 30. Raf3 {[%emt 0:00:20]} Qe7 31. Bc3 {[%emt 0:01:13]} Rd7 {[%emt 0:04:19]} 32. Bxe5 {[%emt 0:01:52]} Bg7 {[%emt 0:00:15]} 33. Qg4 {[%emt 0:01:15]} Qe8 {[%emt 0:00:40]} 34. Bxf6 {[%emt 0:00:14]} h6 {[%emt 0:01:27]} 35. Bxg7 {[%emt 0:00:59]} Kxg7 {[%emt 0:00:11]} 36. e5 {[%emt 0:01:06]} Rxf5 {[%emt 0:00:35]} 37. Qxf5 {[%emt 0:00:08]} Rf7 {[%emt 0:00:10]} 38. Qxf7+ {[%emt 0:00:21]} Qxf7 {[%emt 0:00:06]} 39. Rxf7+ {[%emt 0:00:06]} Kxf7 {[%emt 0:00:05]} 40. Kf2 {[%emt 0:00:32]} 1-0

[Event "WTCC-50 2018"]
[Site "Radebeul"]
[Date "2018.07.09"]
[Round "3"]
[White "Delaney, John Anthony"]
[Black "Strutinskaia, Galina"]
[Result "1/2-1/2"]
[ECO "B33"]
[WhiteElo "2137"]
[BlackElo "2221"]
[Annotator "NA"]
[PlyCount "48"]
[EventDate "2018.07.07"]
[EventType "team-tourn"]
[EventCountry "GER"]
[SourceTitle "playchess.com"]
[Source "ChessBase"]
[SourceQuality "1"]
[TimeControl "40/5400+30:1800+30"]

1. e4 {[%emt 0:00:00]} c5 {[%emt 0:00:00]} 2. Nf3 {[%emt 0:00:00]} e6 {[%emt 0:00:00]} 3. d4 {[%emt 0:00:30]} cxd4 {[%emt 0:00:23]} 4. Nxd4 {[%emt 0:00:10]} Nf6 {[%emt 0:00:56]} 5. Nc3 {[%emt 0:00:24]} Nc6 {[%emt 0:00:06]} 6. Ndb5 {[%emt 0:00:54]} d6 {[%emt 0:00:40]} 7. Bf4 {[%emt 0:00:13]} e5 {[%emt 0:00:05]} 8. Bg5 {[%emt 0:00:22]} a6 {[%emt 0:00:13]} 9. Na3 {[%emt 0:00:36]} b5 {[%emt 0:00:12]} 10. Bxf6 {[%emt 0:01:25]} gxf6 {[%emt 0:00:18]} 11. Nd5 {[%emt 0:00:08]} Bg7 {[%emt 0:00:18]} 12. c3 {[%emt 0:01:40]} Ne7 {[%emt 0:00:51]} 13. Nc2 {[%emt 0:06:42]} Nxd5 {[%emt 0:00:31]} 14. Qxd5 {[%emt 0:03:14] LiveBook: 8 Games} Be6 {[%emt 0:00:14] B33: Sicilian: Pelikan and Sveshnikov Variations} 15. Qd3 {[%emt 0:04:20]} (15. Qc6+ Ke7 16. Nb4 Qd7 17. Qb6 Rhc8 18. Rd1 Bh6 19. Be2 Qc7 20. Qxc7+ Rxc7 21. O-O Rc5 22. g3 {½-½ (38) Kruppa,Y (2555)-Schmittdiel,E (2485) Oberwart 1995}) 15... O-O {[%emt 0:09:32]} 16. Be2 {[%emt 0:06:25]} d5 {[%emt 0:06:44]} 17. exd5 {[%emt 0:07:10]} Qxd5 {[%emt 0:04:08]} 18. Qxd5 {[%emt 0:02:01]} Bxd5 {[%emt 0:00:01]} 19. Ne3 {[%emt 0:00:18]} Be6 {[%emt 0:01:52]} 20. Bg4 $146 {[%emt 0:05:26]} ({Predecessor:} 20. Bd3) 20... Rfd8 $11 {[%emt 0:02:49]} 21. Ke2 {[%emt 0:04:32]} Bh6 {[%emt 0:01:52]} 22. Bxe6 {[%emt 0:05:44]} fxe6 {[%emt 0:00:12]} 23. Rhd1 {[%emt 0:00:34]} Kf7 {[%emt 0:00:22]} 24. a4 {[%emt 0:03:30]} Rxd1 {[%emt 0:13:26]} 1/2-1/2

[Event "WTCC-50 2018"]
[Site "Radebeul"]
[Date "2018.07.09"]
[Round "3"]
[White "Haentsch, Ralf"]
[Black "Polster, Wolfgang"]
[Result "0-1"]
[ECO "B07"]
[WhiteElo "2085"]
[BlackElo "2203"]
[Annotator "NA"]
[PlyCount "86"]
[EventDate "2018.07.07"]
[EventType "team-tourn"]
[EventCountry "GER"]
[SourceTitle "playchess.com"]
[Source "ChessBase"]
[SourceQuality "1"]
[TimeControl "40/5400+30:1800+30"]

1. e4 {[%emt 0:00:00]} d6 {[%emt 0:00:00]} 2. d4 {[%emt 0:00:00]} Nf6 {[%emt 0:00:00]} 3. Nc3 {[%emt 0:00:24]} g6 {[%emt 0:00:24]} 4. f3 {[%emt 0:01:06]} a6 {[%emt 0:04:09]} 5. Be3 {[%emt 0:04:16]} b5 {[%emt 0:00:43]} 6. Qd2 {[%emt 0:01:00] LiveBook: 108 Games} Bb7 {[%emt 0:00:30]} 7. Bh6 {[%emt 0:12:02]} Bxh6 {[%emt 0:26:41]} 8. Qxh6 {[%emt 0:00:21]} Nbd7 {[%emt 0:00:38]} 9. Nh3 {[%emt 0:06:52]} c5 {[%emt 0:04:01]} 10. d5 {[%emt 0:06:35]} Qa5 $14 {[%emt 0:02:22]} 11. Qd2 {[%emt 0:03:02]} c4 {[%emt 0:06:50]} 12. Ne2 {[%emt 0:04:17]} b4 {[%emt 0:15:02]} 13. a3 {[%emt 0:07:46]} c3 {[%emt 0:01:28]} 14. bxc3 {[%emt 0:00:34]} bxa3 {[%emt 0:00:07]} 15. Qc1 {[%emt 0:10:56]} O-O {[%emt 0:05:02]} 16. Qxa3 {[%emt 0:04:25]} Qb6 {[%emt 0:01:55]} 17. Qb4 {[%emt 0:03:24]} Qa7 {[%emt 0:03:41]} 18. Nf2 {[%emt 0:09:10]} Rfc8 {[%emt 0:07:48]} 19. Nd4 {[%emt 0:02:44]} a5 {[%emt 0:05:04]} 20. Qa3 {[%emt 0:01:11]} Nc5 {[%emt 0:05:42]} 21. Bb5 {[%emt 0:04:27]} e5 {[%emt 0:01:17]} 22. Ne2 {[%emt 0:05:33]} Qb6 {[%emt 0:00:43]} 23. Bd3 {[%emt 0:02:38]} Nfd7 {[%emt 0:03:15]} 24. O-O {[%emt 0:00:07]} Nxd3 {[%emt 0:00:50]} 25. cxd3 {[%emt 0:00:23]} Rc5 {[%emt 0:00:58]} 26. Rfb1 {[%emt 0:01:29]} Qc7 {[%emt 0:01:17]} 27. c4 {[%emt 0:00:37]} a4 {[%emt 0:00:28]} 28. Rb4 {[%emt 0:01:02]} Rca5 {[%emt 0:00:18]} 29. Nc3 {[%emt 0:00:17]} Nc5 {[%emt 0:00:15]} 30. Kf1 {[%emt 0:02:08]} Bc8 {[%emt 0:00:17]} 31. Ke2 {[%emt 0:00:34]} Qe7 {[%emt 0:00:20]} 32. Rb6 {[%emt 0:00:58]} Bd7 {[%emt 0:00:39]} 33. Rb4 {[%emt 0:00:43]} Qg5 {[%emt 0:00:29]} 34. g3 {[%emt 0:00:32]} Nb3 {[%emt 0:00:25]} 35. Ra2 {[%emt 0:02:51]} Nc1+ {[%emt 0:00:39]} 36. Kf1 {[%emt 0:00:30]} Nxa2 {[%emt 0:00:14]} 37. Qxa2 {[%emt 0:00:38]} Qe3 {[%emt 0:00:37]} 38. Qe2 {[%emt 0:00:38]} Qc5 {[%emt 0:00:33]} 39. Rb7 {[%emt 0:00:31]} R5a7 {[%emt 0:00:37]} 40. Qb2 {[%emt 0:00:36]} a3 {[%emt 0:01:39]} 41. Rb8+ {[%emt 0:30:56]} Kg7 {[%emt 0:30:49]} 42. Qb6 {[%emt 0:00:00]} Rxb8 {[%emt 0:00:00]} 43. Qxb8 {[%emt 0:00:00]} a2 {[%emt 0:00:00]} 0-1

[Event "WTCC-50 2018"]
[Site "Radebeul"]
[Date "2018.07.09"]
[Round "3"]
[White "Nazarenus, Olaf"]
[Black "Goh, Cheng Hong"]
[Result "1-0"]
[ECO "B06"]
[WhiteElo "2082"]
[BlackElo "2323"]
[Annotator "NA"]
[PlyCount "103"]
[EventDate "2018.07.07"]
[EventType "team-tourn"]
[EventCountry "GER"]
[SourceTitle "playchess.com"]
[Source "ChessBase"]
[SourceQuality "1"]
[TimeControl "40/5400+30:1800+30"]

1. d4 {[%emt 0:00:00]} g6 {[%emt 0:00:00]} 2. e4 {[%emt 0:01:21]} Bg7 {[%emt 0:00:00]} 3. Nc3 {[%emt 0:00:21]} c5 {[%emt 0:00:21]} 4. Nf3 {[%emt 0:00:14]} Qa5 {[%emt 0:00:12]} 5. Be3 {[%emt 0:05:36]} Nf6 {[%emt 0:01:38]} 6. Qd2 {[%emt 0:00:47]} Nc6 {[%emt 0:00:55] LiveBook: 26 Games} 7. h3 {[%emt 0:24:42] B27: Sicilian: 2 Nf3, unusual Black 2nd moves} (7. d5 Nb4 8. e5 Ng4 9. Bf4 f6 10. exf6 Nxf6 11. Rd1 O-O 12. a3 Nbxd5 13. Bc4 e6 14. Be5 Nxc3 15. Bxc3 {½-½ (23) Kelly,L (2172)-Ardeleanu,A (2339) Arad 2017}) 7... cxd4 {[%emt 0:10:21]} 8. Nxd4 {[%emt 0:01:03]} Nxd4 {[%emt 0:01:16]} 9. Qxd4 {[%emt 0:04:00]} Nh5 $146 {[%emt 0:04:00]} ({Predecessor:} 9... O-O 10. Qd2 Qb4 11. Bd3 Qxb2 12. Rb1 Qa3 13. Nb5 Qxa2 14. O-O Ne8 {1-0 (32) Strniscak,T (2220)-Stankovic,A (2105) Zagreb 2012}) 10. Qd2 {[%emt 0:00:46]} Bxc3 {[%emt 0:01:10]} 11. bxc3 {[%emt 0:00:05]} O-O {[%emt 0:01:02]} 12. Bd3 {[%emt 0:08:40]} d6 {[%emt 0:06:00]} 13. g4 {[%emt 0:09:03]} Ng7 {[%emt 0:02:30]} 14. f4 {[%emt 0:04:34]} Bd7 {[%emt 0:06:53]} 15. f5 {[%emt 0:09:00]} Rfc8 {[%emt 0:04:40]} 16. f6 {[%emt 0:04:36]} exf6 {[%emt 0:01:29]} 17. Bd4 {[%emt 0:00:05]} Ne8 {[%emt 0:00:20]} 18. Ke2 {[%emt 0:02:44]} Rc5 {[%emt 0:13:41]} 19. Rag1 {[%emt 0:09:36]} Re5 {[%emt 0:02:39]} 20. Qf4 {[%emt 0:02:49]} Bc6 {[%emt 0:03:21]} 21. Kd2 {[%emt 0:00:40]} d5 {[%emt 0:23:21]} 22. Bxe5 {[%emt 0:00:17]} fxe5 {[%emt 0:00:12]} 23. Qxe5 {[%emt 0:00:10]} Qc7 {[%emt 0:00:11]} 24. Qxc7 {[%emt 0:01:33]} Nxc7 {[%emt 0:00:22]} 25. Re1 {[%emt 0:00:03]} dxe4 {[%emt 0:01:24]} 26. Bxe4 {[%emt 0:00:16]} Bxe4 {[%emt 0:00:08]} 27. Rxe4 {[%emt 0:00:11]} Ne6 {[%emt 0:00:19]} 28. Ke3 {[%emt 0:03:14]} Rc8 {[%emt 0:01:07]} 29. c4 {[%emt 0:01:25]} Kg7 {[%emt 0:03:36]} 30. Rf1 {[%emt 0:01:05]} Rc7 {[%emt 0:01:05]} 31. Kd2 {[%emt 0:00:47]} h6 {[%emt 0:03:41]} 32. Kc3 {[%emt 0:00:45]} Rd7 {[%emt 0:01:08]} 33. Rf2 {[%emt 0:01:48]} Rc7 {[%emt 0:00:26]} 34. Rd2 {[%emt 0:00:52]} Kf6 {[%emt 0:01:57]} 35. Rd5 {[%emt 0:00:15]} Ke7 {[%emt 0:00:44]} 36. h4 {[%emt 0:00:14]} Kf6 {[%emt 0:00:35]} 37. Kb4 {[%emt 0:00:20]} Kg7 {[%emt 0:01:14]} 38. c5 {[%emt 0:00:33]} Kf6 {[%emt 0:01:09]} 39. Kb5 {[%emt 0:00:17]} Ke7 {[%emt 0:00:27]} 40. c3 {[%emt 0:01:14]} Kf6 {[%emt 0:00:18]} 41. Ra4 {[%emt 0:30:23]} Rc6 {[%emt 0:30:36]} 42. Rxa7 {[%emt 0:00:00]} Nc7+ {[%emt 0:00:00]} 43. Kc4 {[%emt 0:00:00]} Nxd5 {[%emt 0:00:00]} 44. Kxd5 {[%emt 0:00:00]} Rc7 {[%emt 0:00:00]} 45. a4 {[%emt 0:00:00]} Ke7 {[%emt 0:00:00]} 46. a5 {[%emt 0:00:00]} Kd7 {[%emt 0:00:00]} 47. Ra8 {[%emt 0:00:00]} Ke7 {[%emt 0:00:00]} 48. Rh8 {[%emt 0:00:00]} Kf6 {[%emt 0:00:00]} 49. Rd8 {[%emt 0:00:00]} Ke7 {[%emt 0:00:00]} 50. Rd6 {[%emt 0:00:00]} Rd7 {[%emt 0:00:00]} 51. Rxd7+ {[%emt 0:00:00]} Kxd7 {[%emt 0:00:00]} 52. Ke5 $18 {[%emt 0:00:00]} 1-0